Cogmind - Beta 16.1 @@@ ROGUE MODE // 2026.02.19 @ 20:54:15 Player: MN-51T Result: Destroyed by 8C-EAH(R) with Subdweller Shrapnel Launcher Performance ------------- Evolutions (0) 0 Regions Visited (2) 400 Robots Destroyed (8) 40 Value Destroyed (325) 325 Prototype IDs (0) 0 Alien Tech Used (0) 0 Bonus (0) 0 TOTAL SCORE: 765 Bonus ------- None Cogmind --------- Core Integrity 0/250 Matter 23/300 Energy 105/125 System Corruption 0% Temperature Cool (0) Movement Rolling (110) Location -10/Subcaves Parts ------- > --- POWER (1) -------- Light Ion Engine > --- PROPULSION (2) --- Subdweller Monowheel Subdweller Monowheel > --- UTILITY (2) ------ Disposable Heat Sink Armor Integrity Analyzer > --- WEAPON (2) ------- Beamcaster > --- INVENTORY (5) ---- Seismic Detector Riot Gun Battle Rifle Grenade Launcher Dirty Datajack (20) Peak State ------------ > --- POWER ------------ Light Ion Engine > --- PROPULSION ------- Subdweller Monowheel Subdweller Monowheel > --- UTILITY ---------- Disposable Heat Sink Armor Integrity Analyzer > --- WEAPON ----------- Beamcaster Subdweller Machine Gun > --- INVENTORY -------- Seismic Detector Riot Gun Battle Rifle Grenade Launcher Dirty Datajack [Rating: 19] Favorites ----------- Power Ion Engine Engine Ion Engine Propulsion Aluminum Leg Leg Aluminum Leg Wheel Subdweller Monowheel Utility Light Armor Plating Device Seismic Detector Storage Small Storage Unit Processor Armor Integrity Analyzer Protection Light Armor Plating Weapon Assault Rifle Energy Gun Beamcaster Energy Cannon Subdweller Beam Cannon Ballistic Gun Assault Rifle Launcher Grenade Launcher Build | -11 -10 -10 ------- Run | Yrd Mat Sub Slots Evolved . | . . . Power . | . . . Propulsion . | . . . Utility . | . . . Weapon . | . . . Parts Attached 22 | 7 3 12 Power 2 | 2 . . Engine 2 | 2 . . Core . | . . . Reactor . | . . . Propulsion 6 | 2 . 4 Treads . | . . . Leg 2 | 2 . . Wheel 4 | . . 4 Hover . | . . . Flight . | . . . Utility 7 | 1 2 4 Device 3 | . 1 2 Storage 1 | 1 . . Processor 1 | . . 1 Hackware . | . . . Protection 2 | . 1 1 Artifact . | . . . Weapon 7 | 2 1 4 Energy Gun 1 | . . 1 Energy Cannon 1 | . . 1 Ballistic Gun 4 | 2 . 2 Ballistic Cannon . | . . . Launcher 1 | . 1 . Special Weapon . | . . . Impact Weapon . | . . . Slashing Weapon . | . . . Piercing Weapon . | . . . Special Melee Weapon . | . . . Unidentified Prototypes . | . . . Parts Lost 3 | . . 3 Power . | . . . Propulsion . | . . . Utility 2 | . . 2 Weapon 1 | . . 1 Highest Loss Streak 1 | . . 1 To Critical Strikes . | . . . Average Backups 3 | . 3 4 Power . | . 1 . Propulsion . | . . . Utility 1 | . . 2 Weapon 1 | . 1 1 Tool/Special . | . . . Unused Backups 5 | . 2 3 Power . | . . . Propulsion . | . . . Utility 2 | . 1 1 Weapon 2 | . 1 1 Tool/Special 1 | . . 1 Average Slot Usage (%) 93 | . 98 85 Engine 13 | . 13 14 Leg 21 | . 28 7 Wheel 6 | . . 19 Device 5 | . 6 3 Storage 5 | . 7 . Protection 12 | . 12 11 Ballistic Gun 26 | . 27 24 Peak Build Rating 19 | 6 7 19 Average Rating 7 | 4 6 10 On Entrance 4 | . 6 7 Avg Prop Armor Cover (%) 4 | . . 4 Naked Turns . | . . . Heaviest Build 33 | 13 16 33 Greatest Support 40 | 20 20 40 Greatest Overweight (x) 1 | . . 1 Average Overweight (x) . | . . . Largest Inventory Capacity 8 | 8 8 5 Average Capacity 6 | 7 6 5 Most Carried 5 | 2 5 5 Average Carried 3 | . 3 4 Final Capacity 8 | 8 5 5 Final Carried 5 | 2 3 5 Class Distribution -------------------- 85% | Mutant 14% | Subdweller-Mutant Dominant Class ---------------- Mutant | -10/Materials Subdweller-Mutant | -10/Subcaves Resources | -11 -10 -10 ----------- Run | Yrd Mat Sub Matter Collected 298 | 189 61 48 Remotely . | . . . Salvage Created 301 | . 99 202 Parts 19 | . 3 16 Haulers Intercepted . | . . . Recyclers Shooed . | . . . Parts Field Recycled . | . . . Retrieved Matter . | . . . Parts Self-Destructed . | . . . Prevented . | . . . Parts Restored . | . . . Kills | -11 -10 -10 ------- Run | Yrd Mat Sub Combat Hostiles Destroyed 8 | . 3 5 Guns 6 | . 2 4 Cannons 1 | . . 1 AOE 1 | . 1 . Classes Destroyed 2 | . 1 1 Grunt 3 | . 3 . Subdweller 5 | . . 5 Best Kill Streak 4 | . 2 4 Combat Bots Only 4 | . 2 4 Max Kills in Single Turn 1 | . 1 1 Gunslinging . | . . . Exploded 1 | . 1 . Melee . | . . . Uniques/NPCs Destroyed . | . . . Combat | -11 -10 -10 -------- Run | Yrd Mat Sub Hostile Shots Fired 47 | . 3 44 Missed 15 | . . 15 Hits 32 | . 3 29 Projectile 32 | . 3 29 AOE 4 | . . 4 Critical Strikes 1 | . . 1 Damage Taken 950 | . 126 824 Core 250 | . 23 227 Absorbed by Shields . | . . . Core Remaining (%) 100 | 100 . . Volleys Fired 26 | . 6 20 Largest 2 | . 2 2 Hottest 100 | . 40 100 Shots Fired 39 | . 7 32 Gun 29 | . 3 26 Cannon 6 | . . 6 Launcher 4 | . 4 . Special . | . . . Kinetic 26 | . 3 23 Thermal 9 | . . 9 Explosive 4 | . 4 . Electromagnetic . | . . . Robot Hit Streak 14 | . 3 14 Robot Miss Streak 2 | . . 2 Penetration Max . | . . . Secondary Targets . | . . . Shots Hit Robots 26 | . 3 23 Core Hits 11 | . 4 7 Critical Kills . | . . . Critical Parts Destroyed . | . . . Critical Strikes 2 | . . 2 Burn 1 | . . 1 Destroy 1 | . . 1 Melee Attacks . | . . . Impact . | . . . Slashing . | . . . Piercing . | . . . Sneak Attacks . | . . . Combat Hostiles . | . . . Follow-up Attacks . | . . . Damage Inflicted 532 | . 165 367 Guns 289 | . 32 257 Cannons 110 | . . 110 Explosions 133 | . 133 . Melee . | . . . Ramming . | . . . Kinetic 269 | . 32 237 Thermal 130 | . . 130 Explosive 133 | . 133 . Electromagnetic . | . . . Impact . | . . . Slashing . | . . . Piercing . | . . . Highest Corruption . | . . . Average Corruption . | . . . Corruption Purged . | . . . Corruption Blocked . | . . . Overload Shots . | . . . Overflow Damage . | . . . Projectiles . | . . . Explosions . | . . . Melee . | . . . Knockbacks . | . . . Impact . | . . . Kinetic . | . . . Secondary . | . . . Self-Inflicted Damage 79 | . 79 . Shots 2 | . 2 . Rammed . | . . . Targets Rammed . | . . . Kicked . | . . . Crushed . | . . . Highest Temperature 292 | . 12 292 Average Temperature 70 | . 7 86 Received Heat Transfer 463 | . 27 436 Siege Activations . | . . . Martial Activations . | . . . Shielding Activations . | . . . Robots Disrupted . | . . . Combat Hostiles . | . . . Robots Corrupted . | . . . Combat Hostiles . | . . . Parts Fried . | . . . Impact Corruptions . | . . . Robots Melted . | . . . Combat Hostiles . | . . . Parts Melted . | . . . Heat Transferred 259 | . . 259 Parts Sabotaged . | . . . Parts Stolen . | . . . Parts Stripped . | . . . Power Chain Reactions . | . . . Alert | -11 -10 -10 ------- Run | Yrd Mat Sub Maximum Alert Level . | . . . Low Security (%) 100 | 100 100 . Level 1 . | . . . Level 2 . | . . . Level 3 . | . . . Level 4 . | . . . Level 5 . | . . . High Security . | . . . Max Security . | . . . Peak Influence 96 | . 96 . Initial . | . . . Average 16 | . 17 . Influence Increases 137 | . 137 . Destroy 0b10 Robot/C 60 | . 60 . Destroy Leader 10 | . 10 . Successful Hack 21 | . 21 . Disable Machine 15 | . 15 . Destroy Structure 31 | . 31 . Influence Decreases 137 | . 89 48 Entered New Map 24 | . . 24 Time Decay 113 | . 89 24 Squads Dispatched . | . . . Investigation . | . . . Extermination . | . . . Reinforcement . | . . . Assault . | . . . Garrison . | . . . Intercept . | . . . Searches Triggered . | . . . Construction Impeded . | . . . Haulers Reinforced . | . . . Active Scanning Responses . | . . . Cargo Convoy Interrupts . | . . . Stealth | -11 -10 -10 --------- Run | Yrd Mat Sub Distress Signals 1 | . 1 . Communications Jammed . | . . . Distress Signals . | . . . Times Spotted 16 | . 4 12 Peak Tracking Total 8 | . 2 8 Tactical Retreats . | . . . Traps | -11 -10 -10 ------- Run | Yrd Mat Sub Traps Triggered 1 | . 1 . Indirectly . | . . . Trap Hack Attempts . | . . . Triggered . | . . . Disarmed . | . . . Reprogrammed . | . . . Reused . | . . . Traps Extracted . | . . . Installed . | . . . Triggered . | . . . Machines | -11 -10 -10 ---------- Run | Yrd Mat Sub Machines Disabled 1 | . 1 . Max in Single Turn 1 | . 1 . Machines Repaired . | . . . Machines Dismantled . | . . . Machines Sabotaged . | . . . Overloaded Fab Kills . | . . . Hacking | -11 -10 -10 --------- Run | Yrd Mat Sub Machines Accessed 5 | . 5 . Terminals 5 | . 5 . Fabricators . | . . . Repair Stations . | . . . Recycling Units . | . . . Scanalyzers . | . . . Garrison Access . | . . . Total Hacks 19 | . 19 . Successful 7 | . 7 . Failed 12 | . 12 . Catastrophic 1 | . 1 . Database Lockouts . | . . . Manual 12 | . 12 . Terminals 19 | . 19 . Fabricators . | . . . Repair Stations . | . . . Recycling Units . | . . . Scanalyzers . | . . . Garrison Access . | . . . Terminal Hacks 4 | . 4 . Record 1 | . 1 . Terminal Index 1 | . 1 . Patrol Status 1 | . 1 . Hauler Manifests 1 | . 1 . Fabricator Hacks . | . . . Repair Station Hacks . | . . . Recycling Unit Hacks . | . . . Scanalyzer . | . . . Garrison Access Hacks . | . . . Unauthorized Hacks 3 | . 3 . Terminals 3 | . 3 . Botnet 3 | . 3 . Fabricators . | . . . Repair Stations . | . . . Recycling Units . | . . . Scanalyzers . | . . . Garrison Access . | . . . Data Cores Recovered . | . . . Used . | . . . Hacking Detections 5 | . 5 . Full Trace Events 1 | . 1 . Feedback Events . | . . . Feedback Blocked . | . . . Robot Schematics Acquired . | . . . Robots Built . | . . . Authchips . | . . . Time . | . . . Total Robot Build Rating . | . . . Part Schematics Acquired . | . . . Parts Built . | . . . Authchips . | . . . Time . | . . . Total Part Build Rating . | . . . Part Studies Acquired . | . . . Parts Repaired . | . . . Time . | . . . Parts Recycled . | . . . Recycled Matter . | . . . Retrieved Matter . | . . . Retrieved Components . | . . . Parts Scanalyzed . | . . . Part Schematics Acquired . | . . . Parts Damaged . | . . . Bothacking | -11 -10 -10 ------------ Run | Yrd Mat Sub Used RIF Installer . | . . . Robots Hacked . | . . . Non-combat . | . . . Combat . | . . . Robot Hacks Applied . | . . . Relay Couplers Released . | . . . Fabnet Peak Effective % . | . . . Robots Rewired . | . . . Allies Hacked . | . . . Hacks Repelled . | . . . Allies | -11 -10 -10 -------- Run | Yrd Mat Sub Total Allies . | . . . Largest Group . | . . . Highest-Rated Group . | . . . Highest-Rated Ally . | . . . Total Orders . | . . . Ally Attacks . | . . . Total Damage . | . . . Kills . | . . . Allies Corrupted . | . . . Allies Melted . | . . . Intel | -11 -10 -10 ------- Run | Yrd Mat Sub Active Infowar (turns) 258 | . 236 22 Optics 16 | . . 16 Seismic 242 | . 236 6 Robot Analysis Total . | . . . Derelict Logs Recovered . | . . . Drone Launches . | . . . Drone Recoveries . | . . . Exploration | -11 -10 -10 ------------- Run | Yrd Mat Sub Turns Passed 808 | 53 514 241 Spaces Moved 532 | 42 370 120 Core 12 | 12 . . Treads . | . . . Legs 432 | 30 370 32 Wheels 88 | . . 88 Hover . | . . . Flight . | . . . Fastest Speed 50 | 50 120 110 Average Speed 120 | 100 120 128 Slowest Speed 190 | 120 120 190 Overloaded Moves . | . . . Propulsion Burnouts . | . . . Robots Hopped . | . . . Potential Cave-ins . | . . . Cave-ins Triggered . | . . . Exploration Rate (%) 21 | 4 53 7 Regions Visited 2 Branch Regions 1 Pre-discovered Areas . | . . . Known Exits Taken . | . . . Unknown Exits Taken 2 | 1 1 . Scrap Searched 1 | . . 1 Spaces Dug . | . . . Terrain Destroyed 46 | . 46 . Melee . | . . . Projectile . | . . . AOE 46 | . 46 . Terrain Rammed . | . . . Walls Destroyed . | . . . Machines Disabled . | . . . Actions | -11 -10 -10 --------- Run | Yrd Mat Sub Total 657 | 49 432 176 Wait 48 | . 42 6 Move 530 | 41 369 120 Hop . | . . . Pick Up 8 | 1 4 3 Fast Attach 17 | 6 3 8 Attach 2 | . 1 1 Detach 4 | . 1 3 Swap 9 | 1 3 5 Drop 13 | . 3 10 Fire 26 | . 6 20 Melee . | . . . Ram . | . . . Kick . | . . . Crush . | . . . Escape Stasis . | . . . Rewire . | . . . Trap . | . . . Miscellaneous . | . . . Route ------- -11/Scrapyard -10/Materials (discovered 4 exits: [*Mat x2] / [*Min] / [*Sub]) -10/Subcaves History --------- Turn | Location | Event 4 | -11/Scrapyard | Discovered new exit (range 15) 54 | -11/Scrapyard | Entered Materials 205 | -10/Materials | Discovered new exit (range 15) 284 | -10/Materials | Discovered new exit (range 4) 308 | -10/Materials | Build established: Mutant 501 | -10/Materials | Discovered new exit (range 6) 557 | -10/Materials | Discovered new exit (range 9) 568 | -10/Materials | Entered Subcaves 709 | -10/Subcaves | Ambushed by swarm of Subdwellers 709 | -10/Subcaves | Ambushed by Subdwellers from Twisted Machinery 712 | -10/Subcaves | Ambushed by Subdwellers from Twisted Machinery 806 | -10/Subcaves | Core integrity fell below 50% 807 | -10/Subcaves | Ambushed by Subdweller buried in earth 809 | -10/Subcaves | Destroyed by 8C-EAH(R) with Subdweller Shrapnel Launcher Last Messages --------------- 00752_ Dropped Ion Engine. 00752_ ZY-N8N(O) collects matter. 00753_ Acquired Sub. Machine Gun. 00756_ Acquired Riot Gun. 00758_ Acquired Dirty Datajack. 00759_ ZY-N8N(O) collects matter. 00761_ Acquired Sub. Optics. 00764_ Lgt. Armor Plating destroyed. 00768_ VW-QIJ(R) suffers critical hit (Destroy). 00771_ VW-QIJ(R) destroyed. 00772_ ZY-N8N(O) puts together Sub. Beam Cannon. 00775_ Acquired Disposable Heat Sink. 00777_ Dropped Sub. Optics. 00785_ Acquired Armor Integrity Analyzer. 00790_ Dropped Hcp. Matter Pod. 00790_ Acquired Beamcaster. 00805_ Sub. Machine Gun destroyed. [Achievement: Do Not Disturb] 00807_ 8C-EAH(R) suffers critical hit (Burn). 00808_ XG-4VU(R): "ARGHSUB!" Map ----- +----------------------------------------------------+ | ?????????????????????????????????????????????????? | | ?????????????????????????????????????????????????? | | ?????????????????????????????????????????????????? | | ?????????????????????????????????????????????????? | | ?????????????????????????????????????????????????? | | ?????????????????????[ ??????????????????????????? | | ??????????????????? % ???????##?????????????????? | | ????????????????????"" ??????? #?????????????????? | | ????????????????????" ????? #?????????????????? | | ??????????????????### ????? #?????????????????? | | ??????????????????? ????? ??????????????????? | | ???????????????????# % ##### ?????? ???????????? | | ????????????????????""""" ?????? #?????????? | | ?????????????????????"%"" ??????% ?????????? | | ?????????????????????#&! ?????? ??????????? | | ?????????????????????# ????? ???????????? | | ??????????????????????# #???? ????????????? | | ?????????????????????###R #??? ?????????????? | | ?????????????????????#;# #?? #??????????????? | | ?????????????????????#; !#??# #??????????????? | | ???????????????## ??### ]= ### ##?????????????? | | ???????????????# ## =[= *; #?????????????? | | ???????????????# ! #### %??????? | | ????????????????# ]| ] #????????? | | ????????????????# && ##????????? | | ????????????????### ; @ #?????????? | | ??????????????????###; ## #?????????? | | ????????????????????# R [ # ##???#?????????? | | ????????????????????# #####??????????????? | | ????????????????????# #????????###???????? | | ????????????????????#### ! ####??????## #???????? | | ??????????????????????# ###????# #???????? | | ??????????????????????## ##???# ##??????? | | ???????????????????????#### ##### ######?? | | ??????????????????????????# ### ##? | | ??????????????????????????## ## #? | | ???????????????????????????# ###### #####? | | ????????????????????# ????## #????#### ##????? | | ????????????????????# ## #???????####?????? | | ???????????????????# #????????????????? | | ?????????????? # ## #????????????????? | | ??????????????? ?##?# ##????????????????? | | ??????????????? ##?????## ##????????????????? | | ???????????????? ??????????## #????????????????? | | ???????????????? ????????????# ##????????????????? | | ?????????????????????????????# #?????????????????? | | ?????????????????????????????# #?????????????????? | | ????????????????????????????## #?????????????????? | | ????????????????????????????#= #?????????????????? | | ???????????????????????????##=##?????????????????? | +----------------------------------------------------+ Best States ------------- Heat Dissipation 25 Coolant Potential 50 Energy Generation 10 Energy Capacity 250 Matter Stores 219 Matter Capacity 300 Sight Range 21 Terrain Scan Density 10 Armor Coverage 800 Evasion (%) 55 Armor Integrity Analysis 30 Item Schematics ----------------- None Robot Schematics ------------------ None Fabricated ------------ Nothing Repaired ---------- Nothing Studied --------- None Alien Tech Used ----------------- None Achievements -------------- Do Not Disturb Challenges ------------ None Game ------ Seed DispersionDispersalBank Manual? 0 Play Time 00:27:12 Cumulative 30.0 hours Start 2026.02.19 @ 18:44:35 End 2026.02.19 @ 20:54:15 Sessions 3 Manual Loads 0 Difficulty Rogue Special Mode None Game No. 22 Rogue 22 Adventurer 0 Explorer 0 Win Type - Total 0 Types 0/0/0/0/0/0/0/0/0/0 Lore% 17 Gallery% 19 Achievement% 28 Wizard Run 0 Options --------- Layout 0 ASCII 0 Keyboard 1 Movement Vi Keybinds 0 Fullscreen 1 Font 18/SmallcapsGlow Map View 76x50 Zoom Use 0% Tactical HUD 1 Map Filters NONE Filters NONE Steam 1 RUN: 3bea9010-2f40-46c7-b2e7-bef9f2fededa